[Event "GrandPrix_29.05"]
[Site "Chess.com"]
[Date "2020.05.29"]
[Round "4"]
[White "tianachess"]
[Black "GM_LOADING"]
[Result "0-1"]
[WhiteElo "2071"]
[BlackElo "2333"]
[TimeControl "600+2"]
[EndTime "10:52:55 PDT"]
[Termination "GM_LOADING won by resignation"]

1. d4 {[%clk 0:10:00.6]} 1... Nf6 {[%clk 0:10:00.9]} 2. Nf3 {[%clk 0:09:59.3]}
2... e6 {[%clk 0:10:01.6]} 3. c4 {[%clk 0:09:52.2]} 3... Bb4+ {[%clk 0:10:01.9]}
4. Nbd2 {[%clk 0:09:51.9]} 4... b6 {[%clk 0:10:02.8]} 5. a3 {[%clk 0:09:52.4]}
5... Bxd2+ {[%clk 0:10:03.1]} 6. Bxd2 {[%clk 0:09:49.8]} 6... Bb7 {[%clk
0:10:04.1]} 7. g3 {[%clk 0:09:47.3]} 7... O-O {[%clk 0:10:02.8]} 8. Bg2 {[%clk
0:09:47.5]} 8... a5 {[%clk 0:10:03]} 9. O-O {[%clk 0:09:23.6]} 9... a4 {[%clk
0:10:01.3]} 10. Bc3 {[%clk 0:08:44.2]} 10... d6 {[%clk 0:09:51.6]} 11. Re1
{[%clk 0:08:01.2]} 11... Be4 {[%clk 0:09:40.8]} 12. Nd2 {[%clk 0:07:57.4]} 12...
Bxg2 {[%clk 0:09:41.4]} 13. Kxg2 {[%clk 0:07:57.9]} 13... Nc6 {[%clk 0:09:00]}
14. e4 {[%clk 0:07:43.2]} 14... e5 {[%clk 0:09:00.7]} 15. d5 {[%clk 0:07:24.9]}
15... Ne7 {[%clk 0:09:01.5]} 16. f4 {[%clk 0:07:20.4]} 16... Nd7 {[%clk
0:08:27.5]} 17. Nf3 {[%clk 0:06:32.9]} 17... exf4 {[%clk 0:07:50.5]} 18. Qd4
{[%clk 0:06:27.4]} 18... f6 {[%clk 0:07:35.9]} 19. Ng5 {[%clk 0:05:52.8]} 19...
Nc5 {[%clk 0:07:20.8]} 20. gxf4 {[%clk 0:05:39.9]} 20... Qd7 {[%clk 0:07:11.9]}
21. f5 {[%clk 0:05:29.1]} 21... Nb3 {[%clk 0:06:54.1]} 22. Qe3 {[%clk
0:05:12.4]} 22... Nxa1 {[%clk 0:06:10.6]} 23. Rxa1 {[%clk 0:03:32.6]} 23... fxg5
{[%clk 0:06:09]} 24. Qxg5 {[%clk 0:03:32.7]} 24... Nxf5 {[%clk 0:06:02.5]} 25.
Kh1 {[%clk 0:03:10.1]} 25... Qe7 {[%clk 0:05:52.7]} 26. Qg4 {[%clk 0:01:57.8]}
26... Ne3 {[%clk 0:05:49.1]} 27. Qe6+ {[%clk 0:00:56.3]} 27... Qxe6 {[%clk
0:05:45]} 28. dxe6 {[%clk 0:00:57]} 28... Rae8 {[%clk 0:05:46]} 29. Rg1 {[%clk
0:00:50.4]} 29... Rf1 {[%clk 0:05:47.4]} 30. Rxf1 {[%clk 0:00:49.7]} 30... Nxf1
{[%clk 0:05:49.3]} 31. Kg2 {[%clk 0:00:50.9]} 31... Ne3+ {[%clk 0:05:50.9]} 32.
Kf3 {[%clk 0:00:51.4]} 32... Nxc4 {[%clk 0:05:52.8]} 0-1

[Event "GrandPrix_29.05"]
[Site "Chess.com"]
[Date "2020.05.29"]
[Round "4"]
[White "klippfiskkjerringa"]
[Black "Alexander_Moskalenko"]
[Result "0-1"]
[WhiteElo "2117"]
[BlackElo "2246"]
[TimeControl "600+2"]
[EndTime "10:52:57 PDT"]
[Termination "Alexander_Moskalenko won by checkmate"]

1. Nf3 {[%clk 0:10:01.9]} 1... d6 {[%clk 0:09:54.2]} 2. d4 {[%clk 0:10:02]} 2...
g6 {[%clk 0:09:56.1]} 3. c4 {[%clk 0:10:01.3]} 3... Bg7 {[%clk 0:09:50.1]} 4.
Nc3 {[%clk 0:09:57.9]} 4... c5 {[%clk 0:09:50.5]} 5. d5 {[%clk 0:09:33.6]} 5...
Bxc3+ {[%clk 0:09:49]} 6. bxc3 {[%clk 0:09:34.8]} 6... f5 {[%clk 0:09:50.7]} 7.
e4 {[%clk 0:07:45.1]} 7... fxe4 {[%clk 0:09:52.6]} 8. Ng5 {[%clk 0:07:45.7]}
8... Nf6 {[%clk 0:09:52.7]} 9. Qc2 {[%clk 0:07:36.8]} 9... Qa5 {[%clk
0:09:53.2]} 10. Bd2 {[%clk 0:07:31.2]} 10... Bf5 {[%clk 0:09:54.6]} 11. Qb3
{[%clk 0:07:06.3]} 11... Nbd7 {[%clk 0:09:54.9]} 12. h3 {[%clk 0:06:38]} 12...
h6 {[%clk 0:09:48.6]} 13. Ne6 {[%clk 0:06:09.7]} 13... Kf7 {[%clk 0:09:49.7]}
14. Nf4 {[%clk 0:05:58.2]} 14... g5 {[%clk 0:09:50.1]} 15. Ne2 {[%clk
0:05:51.8]} 15... Ne5 {[%clk 0:09:51.7]} 16. Ng3 {[%clk 0:05:49.8]} 16... Bg6
{[%clk 0:09:53.3]} 17. Be2 {[%clk 0:05:45.8]} 17... Rag8 {[%clk 0:09:31.2]} 18.
O-O {[%clk 0:05:25.6]} 18... h5 {[%clk 0:08:43.7]} 19. Bxg5 {[%clk 0:05:10.5]}
19... h4 {[%clk 0:08:44.6]} 20. Nh1 {[%clk 0:05:06.3]} 20... Nf3+ {[%clk
0:08:45]} 21. Bxf3 {[%clk 0:03:58.8]} 21... exf3 {[%clk 0:08:46.9]} 22. g4
{[%clk 0:03:27.5]} 22... hxg3 {[%clk 0:08:37.6]} 23. Nxg3 {[%clk 0:03:23.6]}
23... Rxh3 {[%clk 0:06:45.9]} 24. Rfe1 {[%clk 0:02:38.7]} 24... Ne4 {[%clk
0:05:55.8]} 25. Qxb7 {[%clk 0:02:25]} 25... Rxg3+ {[%clk 0:05:55.4]} 26. fxg3
{[%clk 0:02:25.7]} 26... f2+ {[%clk 0:05:56.7]} 27. Kh2 {[%clk 0:01:57.2]} 27...
Rh8+ {[%clk 0:05:51.6]} 28. Bh4 {[%clk 0:01:57.8]} 28... Rxh4+ {[%clk
0:05:51.8]} 29. gxh4 {[%clk 0:01:58.6]} 29... fxe1=Q {[%clk 0:05:51.5]} 30. Rxe1
{[%clk 0:01:57.5]} 30... Qxa2+ {[%clk 0:05:50.2]} 31. Kh1 {[%clk 0:01:48]} 31...
Nf2+ {[%clk 0:05:47]} 32. Kg1 {[%clk 0:01:41.9]} 32... Nh3+ {[%clk 0:05:48]} 33.
Kh1 {[%clk 0:01:43.4]} 33... Be4+ {[%clk 0:05:48.3]} 34. Rxe4 {[%clk 0:01:44.3]}
34... Nf2+ {[%clk 0:05:49.1]} 35. Kg1 {[%clk 0:01:43.5]} 35... Nxe4 {[%clk
0:05:51]} 36. Kh1 {[%clk 0:01:29]} 36... Qf2 {[%clk 0:05:50.9]} 37. Qxa7 {[%clk
0:01:09.6]} 37... Ng3# {[%clk 0:05:52.8]} 0-1

[Event "GrandPrix_29.05"]
[Site "Chess.com"]
[Date "2020.05.29"]
[Round "4"]
[White "kayrakamer"]
[Black "hypert"]
[Result "0-1"]
[WhiteElo "2061"]
[BlackElo "2037"]
[TimeControl "600+2"]
[EndTime "10:53:07 PDT"]
[Termination "hypert won by resignation"]

1. e4 {[%clk 0:10:01.9]} 1... c5 {[%clk 0:10:00.4]} 2. Nf3 {[%clk 0:10:02.9]}
2... Nc6 {[%clk 0:10:01.2]} 3. d4 {[%clk 0:10:01.6]} 3... cxd4 {[%clk
0:10:03.1]} 4. Nxd4 {[%clk 0:10:02.9]} 4... e5 {[%clk 0:10:04.1]} 5. Nb5 {[%clk
0:10:00.8]} 5... a6 {[%clk 0:10:02.6]} 6. N5c3 {[%clk 0:09:58.5]} 6... Bc5
{[%clk 0:09:33.7]} 7. Bc4 {[%clk 0:09:48.2]} 7... Nge7 {[%clk 0:08:59.5]} 8. O-O
{[%clk 0:09:40.7]} 8... O-O {[%clk 0:08:59.2]} 9. a4 {[%clk 0:09:40.2]} 9... d6
{[%clk 0:08:56.8]} 10. Bg5 {[%clk 0:09:38.3]} 10... Kh8 {[%clk 0:08:52.6]} 11.
Nd2 {[%clk 0:09:35.3]} 11... f6 {[%clk 0:08:50.9]} 12. Bh4 {[%clk 0:09:33.7]}
12... g5 {[%clk 0:08:37.6]} 13. Bg3 {[%clk 0:09:33.1]} 13... Ng6 {[%clk
0:08:38.8]} 14. Nd5 {[%clk 0:09:30.1]} 14... Nf4 {[%clk 0:07:37.8]} 15. c3
{[%clk 0:09:24.7]} 15... a5 {[%clk 0:07:26.3]} 16. Rb1 {[%clk 0:09:15.1]} 16...
Be6 {[%clk 0:06:48.6]} 17. Bxf4 {[%clk 0:09:01.2]} 17... gxf4 {[%clk 0:06:06.1]}
18. Qh5 {[%clk 0:08:55]} 18... Qd7 {[%clk 0:05:39.2]} 19. Qh6 {[%clk 0:08:39.8]}
19... Bxd5 {[%clk 0:05:11.6]} 20. Bxd5 {[%clk 0:08:36.1]} 20... Ne7 {[%clk
0:05:11.5]} 21. b4 {[%clk 0:08:25.7]} 21... Bb6 {[%clk 0:04:21.4]} 22. Nc4
{[%clk 0:08:22]} 22... Nxd5 {[%clk 0:04:11.4]} 23. exd5 {[%clk 0:08:23.9]} 23...
Bc7 {[%clk 0:04:11.7]} 24. b5 {[%clk 0:08:16.8]} 24... b6 {[%clk 0:04:04.3]} 25.
Nd2 {[%clk 0:08:06.2]} 25... Rf7 {[%clk 0:03:48]} 26. Ne4 {[%clk 0:08:04.8]}
26... Qe7 {[%clk 0:03:48.1]} 27. f3 {[%clk 0:07:57.7]} 27... Rg8 {[%clk
0:03:43.6]} 28. h4 {[%clk 0:07:41.7]} 28... Rg6 {[%clk 0:03:07.3]} 29. Qh5
{[%clk 0:07:41.1]} 29... f5 {[%clk 0:03:06.6]} 30. Ng5 {[%clk 0:07:40]} 30...
Rfg7 {[%clk 0:03:01]} 31. Rb2 {[%clk 0:07:31.2]} 31... Rg8 {[%clk 0:02:59.1]}
32. Re2 {[%clk 0:06:52.8]} 32... Bd8 {[%clk 0:02:45.9]} 33. c4 {[%clk
0:06:36.9]} 33... Qg7 {[%clk 0:02:25.5]} 34. g4 {[%clk 0:05:44]} 34... Bxg5
{[%clk 0:01:58]} 35. gxf5 {[%clk 0:05:43.4]} 35... Rh6 {[%clk 0:01:53.6]} 36.
Qxg5 {[%clk 0:05:38.7]} 36... Qf7 {[%clk 0:01:49]} 37. Rg2 {[%clk 0:05:39.4]}
37... Rxg5 {[%clk 0:01:39.4]} 38. hxg5 {[%clk 0:05:41.3]} 38... Rh3 {[%clk
0:01:29.3]} 39. g6 {[%clk 0:05:40.3]} 39... Qxf5 {[%clk 0:01:26.5]} 0-1

[Event "GrandPrix_29.05"]
[Site "Chess.com"]
[Date "2020.05.29"]
[Round "4"]
[White "RaphaeI"]
[Black "Borisss85"]
[Result "1-0"]
[WhiteElo "2185"]
[BlackElo "1864"]
[TimeControl "600+2"]
[EndTime "10:53:14 PDT"]
[Termination "RaphaeI won by resignation"]

1. d4 {[%clk 0:10:01.9]} 1... Nf6 {[%clk 0:09:59.8]} 2. Nf3 {[%clk 0:10:02.9]}
2... g6 {[%clk 0:10:00.5]} 3. c4 {[%clk 0:10:01.9]} 3... Bg7 {[%clk 0:10:00.9]}
4. g3 {[%clk 0:10:03.3]} 4... O-O {[%clk 0:10:00.4]} 5. Bg2 {[%clk 0:10:04.5]}
5... d5 {[%clk 0:10:02]} 6. cxd5 {[%clk 0:10:01.3]} 6... Nxd5 {[%clk 0:10:01.8]}
7. O-O {[%clk 0:10:02.5]} 7... Nc6 {[%clk 0:10:00.1]} 8. e4 {[%clk 0:10:01.8]}
8... Nb6 {[%clk 0:09:59.4]} 9. d5 {[%clk 0:10:03.1]} 9... Na5 {[%clk 0:10:00]}
10. Nc3 {[%clk 0:10:04.8]} 10... c6 {[%clk 0:10:00.6]} 11. Bf4 {[%clk
0:10:06.5]} 11... cxd5 {[%clk 0:09:56.9]} 12. Nxd5 {[%clk 0:10:08.4]} 12... Nac4
{[%clk 0:09:48.4]} 13. Nc7 {[%clk 0:05:26.5]} 13... Rb8 {[%clk 0:07:09.6]} 14.
b3 {[%clk 0:05:26.4]} 14... e5 {[%clk 0:05:42.9]} 15. Qxd8 {[%clk 0:05:24]}
15... Rxd8 {[%clk 0:05:42.3]} 16. Bg5 {[%clk 0:05:08.5]} 16... Rd7 {[%clk
0:05:31.6]} 17. Ne8 {[%clk 0:04:10.1]} 17... Nd6 {[%clk 0:05:17.2]} 18. Nxg7
{[%clk 0:04:09.3]} 18... Kxg7 {[%clk 0:05:12.4]} 19. Nxe5 {[%clk 0:04:10.4]}
19... Rc7 {[%clk 0:05:12.2]} 20. Rfd1 {[%clk 0:03:46.9]} 20... Nb5 {[%clk
0:04:30.5]} 21. Bf4 {[%clk 0:03:10.4]} 21... Nc3 {[%clk 0:04:27]} 22. Rd2 {[%clk
0:03:10.6]} 22... Be6 {[%clk 0:04:16.4]} 23. Nxf7 {[%clk 0:02:38.1]} 23... Rbc8
{[%clk 0:04:08.5]} 24. Ng5 {[%clk 0:02:18.4]} 24... Bg8 {[%clk 0:04:01.5]} 25.
Bxc7 {[%clk 0:02:06.7]} 25... Rxc7 {[%clk 0:04:02]} 26. e5 {[%clk 0:02:05.8]}
1-0

[Event "GrandPrix_29.05"]
[Site "Chess.com"]
[Date "2020.05.29"]
[Round "4"]
[White "Khvicha_Supatashvili"]
[Black "Yaroslav_Remizov"]
[Result "1-0"]
[WhiteElo "2132"]
[BlackElo "2059"]
[TimeControl "600+2"]
[EndTime "10:53:17 PDT"]
[Termination "Khvicha_Supatashvili won by resignation"]

1. d4 {[%clk 0:10:01.9]} 1... d5 {[%clk 0:09:55.4]} 2. c4 {[%clk 0:10:02.1]}
2... c6 {[%clk 0:09:47.7]} 3. Nc3 {[%clk 0:09:55.5]} 3... Nf6 {[%clk 0:09:47.8]}
4. e3 {[%clk 0:09:56.3]} 4... e6 {[%clk 0:09:46.4]} 5. Nf3 {[%clk 0:09:56.5]}
5... Nbd7 {[%clk 0:09:47.5]} 6. Bd3 {[%clk 0:09:57]} 6... dxc4 {[%clk
0:09:48.6]} 7. Bxc4 {[%clk 0:09:58.2]} 7... b5 {[%clk 0:09:49.4]} 8. Bd3 {[%clk
0:09:59.5]} 8... Bb7 {[%clk 0:09:42.6]} 9. e4 {[%clk 0:09:57.7]} 9... b4 {[%clk
0:09:43.4]} 10. Na4 {[%clk 0:09:51.7]} 10... c5 {[%clk 0:09:44.4]} 11. e5 {[%clk
0:09:52.8]} 11... Nd5 {[%clk 0:09:45.7]} 12. dxc5 {[%clk 0:09:41.4]} 12... Nxc5
{[%clk 0:08:56.8]} 13. Nxc5 {[%clk 0:09:41.6]} 13... Bxc5 {[%clk 0:08:57]} 14.
O-O {[%clk 0:09:42.8]} 14... Qd7 {[%clk 0:08:37]} 15. Qe2 {[%clk 0:09:31.7]}
15... O-O-O {[%clk 0:08:05.7]} 16. Bg5 {[%clk 0:09:00.4]} 16... f6 {[%clk
0:08:03.4]} 17. Rac1 {[%clk 0:08:54.8]} 17... fxg5 {[%clk 0:07:54.3]} 18. Rxc5+
{[%clk 0:08:54.6]} 18... Kb8 {[%clk 0:07:55.2]} 19. Ba6 {[%clk 0:08:34.5]} 19...
h6 {[%clk 0:04:20.5]} 20. Rb5 {[%clk 0:08:12.8]} 20... Nb6 {[%clk 0:04:12.6]}
21. Bxb7 {[%clk 0:08:12.3]} 21... Kxb7 {[%clk 0:03:53.9]} 22. Qe4+ {[%clk
0:07:53.2]} 22... Qc6 {[%clk 0:03:39.3]} 23. Qxb4 {[%clk 0:07:52.3]} 23... Rd7
{[%clk 0:02:47]} 24. b3 {[%clk 0:07:06.5]} 24... Rc8 {[%clk 0:01:54.2]} 25. Ra5
{[%clk 0:06:29.2]} 25... Qc2 {[%clk 0:01:31.8]} 26. Nd4 {[%clk 0:06:13.7]} 26...
Qc1 {[%clk 0:00:23.7]} 27. g3 {[%clk 0:05:59.1]} 27... Qc3 {[%clk 0:00:14.9]}
28. Rxa7+ {[%clk 0:05:57.5]} 1-0

[Event "GrandPrix_29.05"]
[Site "Chess.com"]
[Date "2020.05.29"]
[Round "4"]
[White "Igrok3069"]
[Black "Rakhmanov_Aleksandr"]
[Result "1/2-1/2"]
[WhiteElo "2539"]
[BlackElo "2457"]
[TimeControl "600+2"]
[EndTime "10:53:26 PDT"]
[Termination "Game drawn by agreement"]

1. d4 {[%clk 0:10:01.7]} 1... d5 {[%clk 0:09:50.7]} 2. c4 {[%clk 0:10:01.8]}
2... e6 {[%clk 0:09:51.7]} 3. Nc3 {[%clk 0:10:02.3]} 3... a6 {[%clk 0:09:50.5]}
4. cxd5 {[%clk 0:09:57.7]} 4... exd5 {[%clk 0:09:52.4]} 5. Qb3 {[%clk
0:09:58.4]} 5... c5 {[%clk 0:09:51.9]} 6. Qxd5 {[%clk 0:09:52.5]} 6... cxd4
{[%clk 0:09:50.1]} 7. Qxd8+ {[%clk 0:09:51.9]} 7... Kxd8 {[%clk 0:09:52]} 8. Ne4
{[%clk 0:09:50.9]} 8... Bb4+ {[%clk 0:09:39.7]} 9. Bd2 {[%clk 0:09:49.7]} 9...
Bxd2+ {[%clk 0:09:40.6]} 10. Nxd2 {[%clk 0:09:14.3]} 10... Nc6 {[%clk
0:09:35.9]} 11. Ngf3 {[%clk 0:09:09.2]} 11... Be6 {[%clk 0:09:03.3]} 12. g3
{[%clk 0:08:55.3]} 12... Nf6 {[%clk 0:09:01.2]} 13. Bg2 {[%clk 0:08:55.4]} 13...
Re8 {[%clk 0:08:59]} 14. O-O {[%clk 0:08:38.3]} 14... h6 {[%clk 0:08:15]} 15.
Rac1 {[%clk 0:07:56]} 15... Rc8 {[%clk 0:05:51]} 16. a3 {[%clk 0:07:28.9]} 16...
Rc7 {[%clk 0:05:27.5]} 17. Rfd1 {[%clk 0:07:19.1]} 17... Kc8 {[%clk 0:05:13.8]}
18. Kf1 {[%clk 0:07:08.7]} 18... Kb8 {[%clk 0:05:07.2]} 19. Nc4 {[%clk
0:06:40.6]} 19... Rd8 {[%clk 0:04:56.8]} 20. Nce5 {[%clk 0:06:19]} 20... Nxe5
{[%clk 0:04:33.1]} 21. Nxe5 {[%clk 0:06:19.3]} 21... Rdc8 {[%clk 0:03:49.8]} 22.
Rxc7 {[%clk 0:06:00.1]} 22... Rxc7 {[%clk 0:03:51.7]} 23. Ke1 {[%clk 0:02:19.4]}
23... Rc2 {[%clk 0:03:34.8]} 24. Rd2 {[%clk 0:02:09.7]} 24... Rc1+ {[%clk
0:03:35.5]} 25. Rd1 {[%clk 0:02:10.2]} 25... Rc2 {[%clk 0:03:37.1]} 26. Rd2
{[%clk 0:02:09.7]} 26... Rc1+ {[%clk 0:03:38.3]} 1/2-1/2

[Event "GrandPrix_29.05"]
[Site "Chess.com"]
[Date "2020.05.29"]
[Round "4"]
[White "GMMarcinDziuba"]
[Black "chessfreak35"]
[Result "0-1"]
[WhiteElo "2454"]
[BlackElo "2497"]
[TimeControl "600+2"]
[EndTime "10:53:27 PDT"]
[Termination "chessfreak35 won by resignation"]

1. Nf3 {[%clk 0:10:01.9]} 1... d5 {[%clk 0:09:57.6]} 2. g3 {[%clk 0:09:56.6]}
2... g6 {[%clk 0:09:58.3]} 3. Bg2 {[%clk 0:09:55.8]} 3... Bg7 {[%clk 0:09:59.9]}
4. O-O {[%clk 0:09:48.5]} 4... Nf6 {[%clk 0:09:58.7]} 5. d4 {[%clk 0:09:47.5]}
5... O-O {[%clk 0:09:59.1]} 6. Nbd2 {[%clk 0:09:46.3]} 6... c5 {[%clk
0:09:38.2]} 7. dxc5 {[%clk 0:09:45.6]} 7... Nc6 {[%clk 0:09:36.4]} 8. Rb1 {[%clk
0:09:22.6]} 8... e5 {[%clk 0:09:07.1]} 9. b4 {[%clk 0:08:46.2]} 9... e4 {[%clk
0:09:07.9]} 10. Ne1 {[%clk 0:08:47.2]} 10... a5 {[%clk 0:09:04.2]} 11. a3 {[%clk
0:08:32.9]} 11... axb4 {[%clk 0:08:53.7]} 12. axb4 {[%clk 0:08:34.8]} 12... Ng4
{[%clk 0:08:50]} 13. e3 {[%clk 0:08:26.2]} 13... Nge5 {[%clk 0:08:33.6]} 14. h3
{[%clk 0:08:10.5]} 14... Bf5 {[%clk 0:08:12.5]} 15. Bb2 {[%clk 0:07:56.5]} 15...
Qd7 {[%clk 0:08:13.3]} 16. Kh2 {[%clk 0:07:57]} 16... Ra2 {[%clk 0:08:04.9]} 17.
c3 {[%clk 0:07:54.5]} 17... Rfa8 {[%clk 0:06:34.2]} 18. Nc2 {[%clk 0:06:38.7]}
18... Nd3 {[%clk 0:06:33.7]} 19. Ba1 {[%clk 0:06:39.1]} 19... h5 {[%clk
0:06:26.5]} 20. b5 {[%clk 0:05:45.7]} 20... Nce5 {[%clk 0:06:02.1]} 21. Nb4
{[%clk 0:05:32.1]} 21... Nxb4 {[%clk 0:05:37.4]} 22. cxb4 {[%clk 0:05:34]} 22...
Rxa1 {[%clk 0:05:37.8]} 23. Rxa1 {[%clk 0:04:09.1]} 23... Rxa1 {[%clk
0:05:39.7]} 24. Qc2 {[%clk 0:04:10.7]} 24... Ra8 {[%clk 0:05:08.7]} 25. b6
{[%clk 0:04:03.3]} 25... Nf3+ {[%clk 0:05:04.2]} 26. Kh1 {[%clk 0:03:52.3]}
26... Bxh3 {[%clk 0:04:58]} 27. Rd1 {[%clk 0:03:48.4]} 27... Ng5 {[%clk
0:04:29.2]} 28. Rg1 {[%clk 0:01:54]} 28... Bxg2+ {[%clk 0:04:23.4]} 29. Rxg2
{[%clk 0:01:55.9]} 29... Qh3+ {[%clk 0:04:21.8]} 0-1

[Event "GrandPrix_29.05"]
[Site "Chess.com"]
[Date "2020.05.29"]
[Round "4"]
[White "AvitalBor"]
[Black "matej2221"]
[Result "1-0"]
[WhiteElo "2482"]
[BlackElo "2163"]
[TimeControl "600+2"]
[EndTime "10:53:27 PDT"]
[Termination "AvitalBor won by resignation"]

1. e4 {[%clk 0:10:01.9]} 1... e5 {[%clk 0:10:00.7]} 2. Nf3 {[%clk 0:10:02.5]}
2... Nc6 {[%clk 0:10:01.8]} 3. Bb5 {[%clk 0:10:04]} 3... a6 {[%clk 0:10:02.9]}
4. Ba4 {[%clk 0:10:05.2]} 4... Nge7 {[%clk 0:10:04.1]} 5. O-O {[%clk 0:10:03.4]}
5... g6 {[%clk 0:10:05.4]} 6. c4 {[%clk 0:10:03.5]} 6... Bg7 {[%clk 0:10:05.5]}
7. Nc3 {[%clk 0:10:04.2]} 7... O-O {[%clk 0:10:06.2]} 8. h3 {[%clk 0:10:05.3]}
8... d6 {[%clk 0:09:58.4]} 9. d3 {[%clk 0:10:04.4]} 9... Bd7 {[%clk 0:09:37.8]}
10. Rb1 {[%clk 0:10:03.9]} 10... f5 {[%clk 0:09:19.3]} 11. b4 {[%clk 0:10:03.5]}
11... Nd4 {[%clk 0:08:53.8]} 12. Bxd7 {[%clk 0:09:58.6]} 12... Qxd7 {[%clk
0:08:38.8]} 13. Re1 {[%clk 0:08:59.6]} 13... b5 {[%clk 0:05:46.4]} 14. Bb2
{[%clk 0:06:19.8]} 14... bxc4 {[%clk 0:05:11.2]} 15. dxc4 {[%clk 0:06:21.7]}
15... Rab8 {[%clk 0:05:06.4]} 16. a3 {[%clk 0:06:15.7]} 16... Nxf3+ {[%clk
0:04:57.6]} 17. Qxf3 {[%clk 0:06:17.6]} 17... fxe4 {[%clk 0:04:58]} 18. Qxe4
{[%clk 0:06:18.1]} 18... Rf4 {[%clk 0:04:59.1]} 19. Qe2 {[%clk 0:06:14.1]} 19...
Qc6 {[%clk 0:04:13.8]} 20. Ne4 {[%clk 0:06:06.7]} 20... a5 {[%clk 0:03:50.8]}
21. b5 {[%clk 0:05:23.7]} 21... Qd7 {[%clk 0:03:50.2]} 22. Rbd1 {[%clk 0:05:23]}
22... Rbf8 {[%clk 0:03:43]} 23. a4 {[%clk 0:05:23.2]} 23... h6 {[%clk
0:02:39.7]} 24. b6 {[%clk 0:04:46.2]} 24... cxb6 {[%clk 0:02:17.3]} 25. Rxd6
{[%clk 0:04:39.8]} 25... Qxa4 {[%clk 0:02:11]} 26. Rxb6 {[%clk 0:04:40.6]} 26...
Nc6 {[%clk 0:02:01.3]} 27. Ra1 {[%clk 0:04:32.8]} 1-0

[Event "GrandPrix_29.05"]
[Site "Chess.com"]
[Date "2020.05.29"]
[Round "4"]
[White "Forking_U"]
[Black "esskeettit"]
[Result "1-0"]
[WhiteElo "2158"]
[BlackElo "2125"]
[TimeControl "600+2"]
[EndTime "10:53:38 PDT"]
[Termination "Forking_U won by checkmate"]

1. e4 {[%clk 0:10:01.9]} 1... c5 {[%clk 0:10:00.6]} 2. Nf3 {[%clk 0:10:02.8]}
2... Nc6 {[%clk 0:09:59.8]} 3. d4 {[%clk 0:10:04.3]} 3... cxd4 {[%clk
0:10:01.7]} 4. Nxd4 {[%clk 0:10:05.8]} 4... g6 {[%clk 0:10:02.7]} 5. c4 {[%clk
0:10:06.4]} 5... Nf6 {[%clk 0:10:00.8]} 6. Nc3 {[%clk 0:10:07.1]} 6... d6 {[%clk
0:10:02.1]} 7. f3 {[%clk 0:10:05.6]} 7... Nxd4 {[%clk 0:10:01.7]} 8. Qxd4 {[%clk
0:10:07.3]} 8... Bg7 {[%clk 0:10:03]} 9. Be3 {[%clk 0:10:08.9]} 9... O-O {[%clk
0:10:02.8]} 10. Qd2 {[%clk 0:10:10.4]} 10... a5 {[%clk 0:09:40.5]} 11. b3 {[%clk
0:10:08.1]} 11... a4 {[%clk 0:09:32.5]} 12. b4 {[%clk 0:10:08.9]} 12... Be6
{[%clk 0:09:29.3]} 13. Rc1 {[%clk 0:10:02.2]} 13... Nd7 {[%clk 0:09:25]} 14. Nd5
{[%clk 0:08:21.2]} 14... Rc8 {[%clk 0:08:57.5]} 15. Be2 {[%clk 0:08:14.8]} 15...
f5 {[%clk 0:08:36.8]} 16. Nf4 {[%clk 0:07:53.9]} 16... Bf7 {[%clk 0:08:34.5]}
17. exf5 {[%clk 0:07:55]} 17... gxf5 {[%clk 0:08:35.5]} 18. O-O {[%clk
0:06:23.6]} 18... e5 {[%clk 0:08:10.5]} 19. Nd5 {[%clk 0:06:23.2]} 19... f4
{[%clk 0:08:11.6]} 20. Bf2 {[%clk 0:06:20.1]} 20... Kh8 {[%clk 0:08:12.4]} 21.
Rfd1 {[%clk 0:05:57.9]} 21... Rg8 {[%clk 0:08:05.4]} 22. Qe1 {[%clk 0:05:52.4]}
22... Qg5 {[%clk 0:08:01.2]} 23. Bh4 {[%clk 0:05:44.3]} 23... Qh6 {[%clk
0:07:06.6]} 24. Ne7 {[%clk 0:05:44.3]} 24... Rce8 {[%clk 0:07:00.1]} 25. Nf5
{[%clk 0:05:30.5]} 25... Qh5 {[%clk 0:06:36]} 26. Nxd6 {[%clk 0:05:07.8]} 26...
Re6 {[%clk 0:06:30.9]} 27. Nxf7+ {[%clk 0:04:59.4]} 27... Qxf7 {[%clk
0:06:32.8]} 28. c5 {[%clk 0:05:00.7]} 28... Qg6 {[%clk 0:06:13.1]} 29. Rxd7
{[%clk 0:04:37.4]} 29... e4 {[%clk 0:06:13.3]} 30. Qf1 {[%clk 0:03:27.7]} 30...
Qh5 {[%clk 0:05:29.4]} 31. Bc4 {[%clk 0:02:21.9]} 31... exf3 {[%clk 0:04:32.2]}
32. Bxe6 {[%clk 0:01:41.9]} 32... Bd4+ {[%clk 0:04:28]} 33. Rxd4 {[%clk
0:01:42.7]} 33... Rxg2+ {[%clk 0:04:28.3]} 34. Qxg2 {[%clk 0:01:41.3]} 34...
fxg2 {[%clk 0:04:29.1]} 35. Bf6# {[%clk 0:01:42.2]} 1-0